Workbook

Sheet Sheet1
A1: 贵阳市大数据应用服务中心专业测试成绩及进入面试环节人员名单
A2: 序号 | B2: 姓名 | C2: 准考证号 | D2: 单位 | E2: 报考岗位及代码 | F2: 笔试成绩 | G2: 笔试成绩（百分制） | H2: 笔试成绩30% | I2: 专业测试成绩 | J2: 专业测试成绩40% | K2: 笔试、专业测试成绩 | L2: 笔试、专业测试排名 | M2: 是否进入下一轮
A3: 1 | B3: 杨臻 | C3: 1152019400521 | D3: 贵阳市大数据应用服务中心 | E3: 20101220201 | F3: 172.5 | G3: =F3/3 -> 57.50 | H3: =G3*0.3 -> 17.25 | I3: 66 | J3: =I3*0.4 -> 26.40 | K3: =H3+J3 -> 43.65 | L3: 1 | M3: 是
A4: 2 | B4: 李国玉 | C4: 1152019401621 | D4: 贵阳市大数据应用服务中心 | E4: 20101220201 | F4: 185.5 | G4: 61.83 | H4: 18.55 | I4: 60 | J4: 24.00 | K4: 42.55 | L4: 2 | M4: 是
A5: 3 | B5: 唐温新 | C5: 1152019402415 | D5: 贵阳市大数据应用服务中心 | E5: 20101220201 | F5: 183 | G5: 61.00 | H5: 18.30 | I5: 60 | J5: 24.00 | K5: 42.30 | L5: 3 | M5: 是
A6: 4 | B6: 李欢 | C6: 1152019404508 | D6: 贵阳市大数据应用服务中心 | E6: 20101220201 | F6: 177.5 | G6: 59.17 | H6: 17.75 | I6: 60 | J6: 24.00 | K6: 41.75 | L6: 4
A7: 5 | B7: 熊丽 | C7: 1152019401221 | D7: 贵阳市大数据应用服务中心 | E7: 20101220201 | F7: 180 | G7: 60.00 | H7: 18.00 | I7: 56 | J7: 22.40 | K7: 40.40 | L7: 5
A8: 6 | B8: 胡植 | C8: 1152019404710 | D8: 贵阳市大数据应用服务中心 | E8: 20101220201 | F8: 179.5 | G8: 59.83 | H8: 17.95 | I8: 50 | J8: 20.00 | K8: 37.95 | L8: 6
A9: 7 | B9: 程萌 | C9: 1152019403901 | D9: 贵阳市大数据应用服务中心 | E9: 20101220201 | F9: 169.5 | G9: 56.50 | H9: 16.95 | I9: 52 | J9: 20.80 | K9: 37.75 | L9: 7
A10: 8 | B10: 张忻妍 | C10: 1152019402424 | D10: 贵阳市大数据应用服务中心 | E10: 20101220201 | F10: 170 | G10: 56.67 | H10: 17.00 | I10: 49 | J10: 19.60 | K10: 36.60 | L10: 8
A11: 9 | B11: 杨聪 | C11: 1152019402222 | D11: 贵阳市大数据应用服务中心 | E11: 20101220201 | F11: 167 | G11: 55.67 | H11: 16.70 | I11: 33 | J11: 13.20 | K11: 29.90 | L11: 9
A12: 10 | B12: 彭英英 | C12: 1152019401003 | D12: 贵阳市大数据应用服务中心 | E12: 20101220201 | F12: 172.5 | G12: 57.50 | H12: 17.25 | I12: 缺考 | J12: 0.00 | K12: 17.25 | L12: 10
A14: 1 | B14: 罗吉 | C14: 1152019400118 | D14: 贵阳市大数据应用服务中心 | E14: 20101220202 | F14: 209 | G14: =F14/3 -> 69.67 | H14: =G14*0.3 -> 20.90 | I14: 72 | J14: =I14*0.4 -> 28.80 | K14: =J14+H14 -> 49.70 | L14: 1 | M14: 是
A15: 2 | B15: 王思佳 | C15: 1152019402630 | D15: 贵阳市大数据应用服务中心 | E15: 20101220202 | F15: 181.5 | G15: 60.50 | H15: 18.15 | I15: 68 | J15: =I15*0.4 -> 27.20 | K15: 45.35 | L15: 2 | M15: 是
A16: 3 | B16: 杨筱彤 | C16: 1152019404821 | D16: 贵阳市大数据应用服务中心 | E16: 20101220202 | F16: 176 | G16: 58.67 | H16: 17.60 | I16: 62 | J16: =I16*0.4 -> 24.80 | K16: 42.40 | L16: 3 | M16: 是
A17: 4 | B17: 陈思材 | C17: 1152019400109 | D17: 贵阳市大数据应用服务中心 | E17: 20101220202 | F17: 169.5 | G17: =F17/3 -> 56.50 | H17: =G17*0.3 -> 16.95 | I17: 60 | J17: =I17*0.4 -> 24.00 | K17: =J17+H17 -> 40.95 | L17: 4
A18: 5 | B18: 张宏睿 | C18: 1152019403219 | D18: 贵阳市大数据应用服务中心 | E18: 20101220202 | F18: 191.5 | G18: =F18/3 -> 63.83 | H18: =G18*0.3 -> 19.15 | I18: 46 | J18: =I18*0.4 -> 18.40 | K18: =J18+H18 -> 37.55 | L18: 5
A19: 6 | B19: 何妍蕾 | C19: 1152019403503 | D19: 贵阳市大数据应用服务中心 | E19: 20101220202 | F19: 183.5 | G19: 61.17 | H19: 18.35 | I19: 30 | J19: =I19*0.4 -> 12.00 | K19: 30.35 | L19: 6
A20: 7 | B20: 莫顺望 | C20: 1152019402327 | D20: 贵阳市大数据应用服务中心 | E20: 20101220202 | F20: 174.5 | G20: =F20/3 -> 58.17 | H20: =G20*0.3 -> 17.45 | I20: 28 | J20: =I20*0.4 -> 11.20 | K20: =J20+H20 -> 28.65 | L20: 7
A21: 8 | B21: 熊林峰 | C21: 1152019400730 | D21: 贵阳市大数据应用服务中心 | E21: 20101220202 | F21: 188 | G21: =F21/3 -> 62.67 | H21: =G21*0.3 -> 18.80 | I21: 23 | J21: =I21*0.4 -> 9.20 | K21: =J21+H21 -> 28.00 | L21: 8
A22: 9 | B22: 赵继元 | C22: 1152019400627 | D22: 贵阳市大数据应用服务中心 | E22: 20101220202 | F22: 182.5 | G22: 60.83 | H22: 18.25 | I22: 3 | J22: =I22*0.4 -> 1.20 | K22: 19.45 | L22: 9
A23: 10 | B23: 陈双元 | C23: 1152019400208 | D23: 贵阳市大数据应用服务中心 | E23: 20101220202 | F23: 176 | G23: 58.67 | H23: 17.60 | I23: 缺考 | J23: 0.00 | K23: 17.60 | L23: 10
